[Event "Titled Tuesday Blitz April 19 Early 2022"]
[White "Miszler, Levente"]
[Black "Laxman, R.R."]
[WhiteFideId "763276"]
[BlackFideId "5005361"]
[WhiteElo "1966"]
[BlackElo "2476"]
[Result "0-1"]
[Round "01"]
[TimeControl "180+1"]
[Date "2022.04.19"]
[WhiteClock "0:00:06"]
[BlackClock "0:01:21"]

1. Nf3 {[%clk 0:03:00]}  Nf6 {[%clk 0:02:59]} 2. c4 {[%clk 0:03:00]}  b6 {[%clk 0:02:59]} 3. g3 {[%clk 0:03:00]}  Bb7 {[%clk 0:02:58]} 4. Bg2 {[%clk 0:03:00]}  e6 {[%clk 0:02:59]} 5. O-O {[%clk 0:03:00]}  g6 {[%clk 0:02:58]} 6. b3 {[%clk 0:03:00]}  Bg7 {[%clk 0:02:58]} 7. Bb2 {[%clk 0:03:00]}  O-O {[%clk 0:02:58]} 8. d3 {[%clk 0:02:59]}  c5 {[%clk 0:02:58]} 9. Nbd2 {[%clk 0:02:59]}  d5 {[%clk 0:02:58]} 10. e3 {[%clk 0:02:54]}  Nc6 {[%clk 0:02:57]} 11. a3 {[%clk 0:02:53]}  Qe7 {[%clk 0:02:48]} 12. Qc2 {[%clk 0:02:52]}  Rac8 {[%clk 0:02:47]} 13. Rfe1 {[%clk 0:02:52]}  Rfd8 {[%clk 0:02:47]} 14. e4 {[%clk 0:02:52]}  dxe4 {[%clk 0:02:46]} 15. dxe4 {[%clk 0:02:53]}  Ng4 {[%clk 0:02:45]} 16. h3 {[%clk 0:02:48]}  Nge5 {[%clk 0:02:43]} 17. Nxe5 {[%clk 0:02:48]}  Bxe5 {[%clk 0:02:43]} 18. Nf3 {[%clk 0:02:39]}  Bxb2 {[%clk 0:02:41]} 19. Qxb2 {[%clk 0:02:40]}  Nd4 {[%clk 0:02:42]} 20. Nxd4 {[%clk 0:02:36]}  Rxd4 {[%clk 0:02:43]} 21. Rad1 {[%clk 0:02:33]}  Rcd8 {[%clk 0:02:43]} 22. Rxd4 {[%clk 0:02:33]}  Rxd4 {[%clk 0:02:44]} 23. e5 {[%clk 0:02:32]}  Bxg2 {[%clk 0:02:42]} 24. Kxg2 {[%clk 0:02:33]}  Qb7+ {[%clk 0:02:42]} 25. Kg1 {[%clk 0:02:32]}  Qf3 {[%clk 0:02:42]} 26. Qe2 {[%clk 0:02:27]}  Qxb3 {[%clk 0:02:41]} 27. h4 {[%clk 0:02:17]}  Qxc4 {[%clk 0:02:40]} 28. Qf3 {[%clk 0:02:16]}  Qd5 {[%clk 0:02:40]} 29. Qf6 {[%clk 0:02:13]}  Rd1 {[%clk 0:02:39]} 30. Rxd1 {[%clk 0:02:13]}  Qxd1+ {[%clk 0:02:40]} 31. Kg2 {[%clk 0:02:13]}  Qd5+ {[%clk 0:02:40]} 32. Kg1 {[%clk 0:02:13]}  c4 {[%clk 0:02:40]} 33. h5 {[%clk 0:02:09]}  Qd1+ {[%clk 0:02:38]} 34. Kg2 {[%clk 0:02:10]}  Qxh5 {[%clk 0:02:34]} 35. Qd8+ {[%clk 0:02:09]}  Kg7 {[%clk 0:02:34]} 36. Qf6+ {[%clk 0:02:08]}  Kh6 {[%clk 0:02:34]} 37. Qxf7 {[%clk 0:02:02]}  Qxe5 {[%clk 0:02:34]} 38. Qf8+ {[%clk 0:02:03]}  Qg7 {[%clk 0:02:26]} 39. Qf4+ {[%clk 0:02:01]}  g5 {[%clk 0:02:26]} 40. Qxc4 {[%clk 0:02:01]}  Qd7 {[%clk 0:02:25]} 41. Kh2 {[%clk 0:01:52]}  Kg6 {[%clk 0:02:20]} 42. Qe4+ {[%clk 0:01:52]}  Kf6 {[%clk 0:02:19]} 43. Qf3+ {[%clk 0:01:48]}  Kg7 {[%clk 0:02:18]} 44. Qe3 {[%clk 0:01:46]}  h6 {[%clk 0:02:18]} 45. Qe5+ {[%clk 0:01:43]}  Kg6 {[%clk 0:02:18]} 46. Qe4+ {[%clk 0:01:37]}  Kg7 {[%clk 0:02:18]} 47. Qe5+ {[%clk 0:01:38]}  Kf7 {[%clk 0:02:18]} 48. f4 {[%clk 0:01:33]}  Qd2+ {[%clk 0:02:14]} 49. Kh3 {[%clk 0:01:32]}  Qd5 {[%clk 0:02:06]} 50. Qc7+ {[%clk 0:01:23]}  Kg6 {[%clk 0:02:06]} 51. fxg5 {[%clk 0:01:22]}  Qh1+ {[%clk 0:02:05]} 52. Kg4 {[%clk 0:01:20]}  Qe4+ {[%clk 0:02:03]} 53. Kh3 {[%clk 0:01:20]}  h5 {[%clk 0:02:01]} 54. Kh2 {[%clk 0:01:14]}  Qe2+ {[%clk 0:01:58]} 55. Kh3 {[%clk 0:01:11]}  Qf3 {[%clk 0:01:58]} 56. Kh2 {[%clk 0:01:10]}  Qxa3 {[%clk 0:01:57]} 57. Qd8 {[%clk 0:01:03]}  Qa2+ {[%clk 0:01:55]} 58. Kh3 {[%clk 0:01:03]}  Qa1 {[%clk 0:01:43]} 59. Qg8+ {[%clk 0:01:00]}  Kf5 {[%clk 0:01:43]} 60. Qf7+ {[%clk 0:00:42]}  Kxg5 {[%clk 0:01:42]} 61. Qg8+ {[%clk 0:00:41]}  Kh6 {[%clk 0:01:41]} 62. Qf8+ {[%clk 0:00:39]}  Qg7 {[%clk 0:01:41]} 63. Qf4+ {[%clk 0:00:39]}  Kh7 {[%clk 0:01:39]} 64. Qe4+ {[%clk 0:00:37]}  Kh8 {[%clk 0:01:40]} 65. Qa8+ {[%clk 0:00:34]}  Kh7 {[%clk 0:01:40]} 66. Qe4+ {[%clk 0:00:34]}  Kh6 {[%clk 0:01:40]} 67. Qe3+ {[%clk 0:00:33]}  Kg6 {[%clk 0:01:39]} 68. Qe4+ {[%clk 0:00:33]}  Kf6 {[%clk 0:01:36]} 69. Qf4+ {[%clk 0:00:31]}  Ke7 {[%clk 0:01:35]} 70. Qc7+ {[%clk 0:00:31]}  Kf8 {[%clk 0:01:36]} 71. Qd8+ {[%clk 0:00:31]}  Kf7 {[%clk 0:01:37]} 72. Qd7+ {[%clk 0:00:31]}  Kf6 {[%clk 0:01:34]} 73. Qd4+ {[%clk 0:00:30]}  e5 {[%clk 0:01:34]} 74. Qd6+ {[%clk 0:00:30]}  Kf5 {[%clk 0:01:34]} 75. Qd3+ {[%clk 0:00:26]}  e4 {[%clk 0:01:33]} 76. Qd5+ {[%clk 0:00:26]}  Qe5 {[%clk 0:01:33]} 77. Qf7+ {[%clk 0:00:26]}  Kg5 {[%clk 0:01:33]} 78. Qg8+ {[%clk 0:00:25]}  Kf6 {[%clk 0:01:33]} 79. Qf8+ {[%clk 0:00:17]}  Ke6 {[%clk 0:01:33]} 80. Qe8+ {[%clk 0:00:14]}  Kd5 {[%clk 0:01:34]} 81. Qd7+ {[%clk 0:00:14]}  Qd6 {[%clk 0:01:33]} 82. Qf5+ {[%clk 0:00:12]}  Kd4 {[%clk 0:01:33]} 83. Qxh5 {[%clk 0:00:11]}  e3 {[%clk 0:01:32]} 84. Qd1+ {[%clk 0:00:12]}  Ke5 {[%clk 0:01:32]} 85. Qh5+ {[%clk 0:00:12]}  Ke4 {[%clk 0:01:31]} 86. Qg4+ {[%clk 0:00:11]}  Kd5 {[%clk 0:01:31]} 87. Qf5+ {[%clk 0:00:10]}  Qe5 {[%clk 0:01:31]} 88. Qd3+ {[%clk 0:00:10]}  Kc5 {[%clk 0:01:31]} 89. Qc2+ {[%clk 0:00:10]}  Kd6 {[%clk 0:01:31]} 90. Qd3+ {[%clk 0:00:10]}  Kc7 {[%clk 0:01:31]} 91. Qc2+ {[%clk 0:00:10]}  Kb7 {[%clk 0:01:31]} 92. Qh7+ {[%clk 0:00:10]}  Ka6 {[%clk 0:01:27]} 93. Qd3+ {[%clk 0:00:09]}  b5 {[%clk 0:01:26]} 94. Qa3+ {[%clk 0:00:07]}  Kb6 {[%clk 0:01:26]} 95. Qd3 {[%clk 0:00:06]}  e2 {[%clk 0:01:24]} 96. Qg6+ {[%clk 0:00:07]}  Kc5 {[%clk 0:01:24]} 97. Qc2+ {[%clk 0:00:06]}  Kb6 {[%clk 0:01:20]} 98. Qg6+ {[%clk 0:00:06]}  Ka5 {[%clk 0:01:21]} 0-1


[Site "https://www.chess.com"]

[Event "Titled Tuesday Blitz April 19 Early 2022"]
[White "Mitrabha, Guha"]
[Black "Kahlert, Thomas"]
[WhiteFideId "5057000"]
[BlackFideId "4625242"]
[WhiteElo "2468"]
[BlackElo "2228"]
[Result "1-0"]
[Round "01"]
[TimeControl "180+1"]
[Date "2022.04.19"]
[WhiteClock "0:02:09"]
[BlackClock "0:02:28"]

1. Nf3 {[%clk 0:02:27]}  Nf6 {[%clk 0:02:55]} 2. d4 {[%clk 0:02:26]}  g6 {[%clk 0:02:54]} 3. Nbd2 {[%clk 0:02:26]}  d5 {[%clk 0:02:54]} 4. b4 {[%clk 0:02:25]}  Bg7 {[%clk 0:02:54]} 5. e3 {[%clk 0:02:26]}  O-O {[%clk 0:02:53]} 6. c4 {[%clk 0:02:26]}  a5 {[%clk 0:02:53]} 7. b5 {[%clk 0:02:26]}  dxc4 {[%clk 0:02:53]} 8. Bxc4 {[%clk 0:02:25]}  Nbd7 {[%clk 0:02:53]} 9. O-O {[%clk 0:02:25]}  Nb6 {[%clk 0:02:52]} 10. Be2 {[%clk 0:02:25]}  Bd7 {[%clk 0:02:51]} 11. a4 {[%clk 0:02:23]}  c6 {[%clk 0:02:51]} 12. bxc6 {[%clk 0:02:22]}  Bxc6 {[%clk 0:02:51]} 13. Bb2 {[%clk 0:02:21]}  Qd7 {[%clk 0:02:46]} 14. Ne5 {[%clk 0:02:20]}  Qe8 {[%clk 0:02:45]} 15. Nxc6 {[%clk 0:02:21]}  Qxc6 {[%clk 0:02:45]} 16. Bf3 {[%clk 0:02:21]}  Qd7 {[%clk 0:02:42]} 17. Qb3 {[%clk 0:02:21]}  Nbd5 {[%clk 0:02:39]} 18. Nc4 {[%clk 0:02:21]}  Ra6 {[%clk 0:02:35]} 19. Rfc1 {[%clk 0:02:19]}  h5 {[%clk 0:02:33]} 20. h3 {[%clk 0:02:18]}  Nb4 {[%clk 0:02:33]} 21. Nxa5 {[%clk 0:02:15]}  Rxa5 {[%clk 0:02:32]} 22. Qxb4 {[%clk 0:02:15]}  Rfa8 {[%clk 0:02:31]} 23. Qxb7 {[%clk 0:02:12]}  Rxa4 {[%clk 0:02:28]} 24. Qxd7 {[%clk 0:02:09]} 1-0


[Site "https://www.chess.com"]

[Event "Titled Tuesday Blitz April 19 Early 2022"]
[White "Mohammadian, Mohammad"]
[Black "Karas, Marek"]
[WhiteFideId "12566055"]
[BlackFideId "14928558"]
[WhiteElo "1544"]
[BlackElo "2271"]
[Result "0-1"]
[Round "01"]
[TimeControl "180+1"]
[Date "2022.04.19"]
[WhiteClock "0:00:02"]
[BlackClock "0:01:09"]

1. e4 {[%clk 0:02:58]}  c5 {[%clk 0:02:50]} 2. Nf3 {[%clk 0:02:57]}  a6 {[%clk 0:02:50]} 3. d4 {[%clk 0:02:56]}  cxd4 {[%clk 0:02:50]} 4. Nxd4 {[%clk 0:02:56]}  Nf6 {[%clk 0:02:48]} 5. Nc3 {[%clk 0:02:55]}  e5 {[%clk 0:02:46]} 6. Nb3 {[%clk 0:02:54]}  Bb4 {[%clk 0:02:40]} 7. Bd3 {[%clk 0:02:51]}  d5 {[%clk 0:02:38]} 8. exd5 {[%clk 0:02:48]}  Nxd5 {[%clk 0:02:39]} 9. Bd2 {[%clk 0:02:46]}  Bxc3 {[%clk 0:02:36]} 10. bxc3 {[%clk 0:02:41]}  Nc6 {[%clk 0:02:35]} 11. O-O {[%clk 0:02:35]}  O-O {[%clk 0:02:34]} 12. Re1 {[%clk 0:02:34]}  Re8 {[%clk 0:02:21]} 13. Qf3 {[%clk 0:02:27]}  Nf6 {[%clk 0:02:19]} 14. Bg5 {[%clk 0:02:24]}  h6 {[%clk 0:02:18]} 15. Bxf6 {[%clk 0:02:23]}  Qxf6 {[%clk 0:02:19]} 16. Qxf6 {[%clk 0:02:22]}  gxf6 {[%clk 0:02:19]} 17. Rad1 {[%clk 0:02:18]}  Be6 {[%clk 0:02:13]} 18. h3 {[%clk 0:02:14]}  Rac8 {[%clk 0:02:10]} 19. Nc5 {[%clk 0:02:02]}  Rc7 {[%clk 0:02:10]} 20. Nxe6 {[%clk 0:02:01]}  fxe6 {[%clk 0:02:09]} 21. Rb1 {[%clk 0:01:59]}  Ne7 {[%clk 0:02:01]} 22. Rb3 {[%clk 0:01:56]}  Rec8 {[%clk 0:01:57]} 23. Reb1 {[%clk 0:01:54]}  b5 {[%clk 0:01:55]} 24. a4 {[%clk 0:01:50]}  bxa4 {[%clk 0:01:52]} 25. Ra3 {[%clk 0:01:50]}  Nd5 {[%clk 0:01:52]} 26. Rxa4 {[%clk 0:01:47]}  Nxc3 {[%clk 0:01:52]} 27. Rba1 {[%clk 0:01:28]}  Nxa4 {[%clk 0:01:51]} 28. Rxa4 {[%clk 0:01:28]}  Ra8 {[%clk 0:01:43]} 29. Ra5 {[%clk 0:01:19]}  Kg7 {[%clk 0:01:36]} 30. Kf1 {[%clk 0:01:19]}  Rd7 {[%clk 0:01:32]} 31. Ke2 {[%clk 0:01:15]}  Rd5 {[%clk 0:01:29]} 32. Rxa6 {[%clk 0:01:11]}  Rxa6 {[%clk 0:01:29]} 33. Bxa6 {[%clk 0:01:11]}  f5 {[%clk 0:01:29]} 34. c4 {[%clk 0:01:07]}  Rd6 {[%clk 0:01:29]} 35. Bb5 {[%clk 0:01:07]}  Kf6 {[%clk 0:01:28]} 36. g3 {[%clk 0:01:04]}  e4 {[%clk 0:01:28]} 37. h4 {[%clk 0:00:58]}  Ke5 {[%clk 0:01:26]} 38. Ke1 {[%clk 0:00:43]}  Kd4 {[%clk 0:01:25]} 39. Ke2 {[%clk 0:00:40]}  e5 {[%clk 0:01:25]} 40. f3 {[%clk 0:00:35]}  exf3+ {[%clk 0:01:23]} 41. Kxf3 {[%clk 0:00:34]}  Rf6 {[%clk 0:01:18]} 42. g4 {[%clk 0:00:24]}  e4+ {[%clk 0:01:09]} 43. Kf4 {[%clk 0:00:21]}  fxg4+ {[%clk 0:01:09]} 44. Kxg4 {[%clk 0:00:21]}  e3 {[%clk 0:01:09]} 45. c5 {[%clk 0:00:18]}  Kxc5 {[%clk 0:01:08]} 46. Be2 {[%clk 0:00:15]}  Kd4 {[%clk 0:01:08]} 47. Kh5 {[%clk 0:00:14]}  Kc3 {[%clk 0:01:08]} 48. Kg4 {[%clk 0:00:06]}  Kd2 {[%clk 0:01:08]} 49. Bc4 {[%clk 0:00:04]}  e2 {[%clk 0:01:09]} 50. Bxe2 {[%clk 0:00:03]}  Kxe2 {[%clk 0:01:09]} 51. Kh5 {[%clk 0:00:02]}  Ke3 {[%clk 0:01:09]} 0-1


[Site "https://www.chess.com"]

[Event "Titled Tuesday Blitz April 19 Early 2022"]
[White "Molina, Roberto Junio Brito"]
[Black "Toncheva, Nadya"]
[WhiteFideId "2109450"]
[BlackFideId "2924056"]
[WhiteElo "2432"]
[BlackElo "1884"]
[Result "1-0"]
[Round "01"]
[TimeControl "180+1"]
[Date "2022.04.19"]
[WhiteClock "0:00:28"]
[BlackClock "0:00:01"]

1. d4 {[%clk 0:02:57]}  Nf6 {[%clk 0:02:58]} 2. c4 {[%clk 0:02:56]}  e6 {[%clk 0:02:59]} 3. Nf3 {[%clk 0:02:56]}  c5 {[%clk 0:03:00]} 4. d5 {[%clk 0:02:55]}  exd5 {[%clk 0:03:00]} 5. cxd5 {[%clk 0:02:56]}  d6 {[%clk 0:03:01]} 6. Nc3 {[%clk 0:02:56]}  g6 {[%clk 0:03:01]} 7. e4 {[%clk 0:02:56]}  a6 {[%clk 0:03:01]} 8. h3 {[%clk 0:02:56]}  b5 {[%clk 0:03:00]} 9. Bd3 {[%clk 0:02:56]}  Bg7 {[%clk 0:03:00]} 10. O-O {[%clk 0:02:56]}  O-O {[%clk 0:03:00]} 11. Bf4 {[%clk 0:02:56]}  Qb6 {[%clk 0:02:59]} 12. Qd2 {[%clk 0:02:55]}  Re8 {[%clk 0:02:54]} 13. Rfe1 {[%clk 0:02:55]}  Nbd7 {[%clk 0:02:53]} 14. a3 {[%clk 0:02:55]}  c4 {[%clk 0:02:48]} 15. Bc2 {[%clk 0:02:53]}  Nc5 {[%clk 0:02:42]} 16. Be3 {[%clk 0:02:46]}  Qc7 {[%clk 0:02:37]} 17. Bd4 {[%clk 0:02:44]}  Bb7 {[%clk 0:02:30]} 18. Re2 {[%clk 0:02:35]}  Nfd7 {[%clk 0:01:53]} 19. Rae1 {[%clk 0:02:34]}  Ne5 {[%clk 0:01:45]} 20. Nxe5 {[%clk 0:02:34]}  dxe5 {[%clk 0:01:43]} 21. Be3 {[%clk 0:02:34]}  Qd6 {[%clk 0:01:42]} 22. g3 {[%clk 0:02:11]}  Bc8 {[%clk 0:01:40]} 23. Kh2 {[%clk 0:02:10]}  Bd7 {[%clk 0:01:37]} 24. f4 {[%clk 0:02:06]}  a5 {[%clk 0:01:36]} 25. f5 {[%clk 0:02:01]}  b4 {[%clk 0:01:33]} 26. Nd1 {[%clk 0:01:57]}  Reb8 {[%clk 0:01:07]} 27. axb4 {[%clk 0:01:56]}  axb4 {[%clk 0:01:05]} 28. Nf2 {[%clk 0:01:47]}  Ra2 {[%clk 0:00:59]} 29. Bb1 {[%clk 0:01:46]}  c3 {[%clk 0:00:55]} 30. Qc1 {[%clk 0:01:32]}  Ra1 {[%clk 0:00:33]} 31. bxc3 {[%clk 0:01:23]}  bxc3 {[%clk 0:00:26]} 32. Qxc3 {[%clk 0:01:24]}  Rbxb1 {[%clk 0:00:19]} 33. Rxb1 {[%clk 0:01:25]}  Rxb1 {[%clk 0:00:19]} 34. Qxc5 {[%clk 0:01:20]}  Qa6 {[%clk 0:00:19]} 35. Qc2 {[%clk 0:01:12]}  Ra1 {[%clk 0:00:14]} 36. fxg6 {[%clk 0:01:07]}  hxg6 {[%clk 0:00:12]} 37. Qb2 {[%clk 0:01:01]}  Bb5 {[%clk 0:00:11]} 38. Rc2 {[%clk 0:00:56]}  Re1 {[%clk 0:00:10]} 39. Qc3 {[%clk 0:00:53]}  Rb1 {[%clk 0:00:08]} 40. Qc8+ {[%clk 0:00:48]}  Kh7 {[%clk 0:00:07]} 41. Qxa6 {[%clk 0:00:45]}  Bxa6 {[%clk 0:00:08]} 42. Rd2 {[%clk 0:00:42]}  Bb5 {[%clk 0:00:07]} 43. g4 {[%clk 0:00:37]}  Bf8 {[%clk 0:00:04]} 44. d6 {[%clk 0:00:37]}  Bd7 {[%clk 0:00:04]} 45. Bg5 {[%clk 0:00:36]}  Rb6 {[%clk 0:00:03]} 46. Be7 {[%clk 0:00:36]}  Kg7 {[%clk 0:00:02]} 47. Bxf8+ {[%clk 0:00:35]}  Kxf8 {[%clk 0:00:03]} 48. Kg3 {[%clk 0:00:36]}  Ke8 {[%clk 0:00:02]} 49. h4 {[%clk 0:00:36]}  Be6 {[%clk 0:00:03]} 50. h5 {[%clk 0:00:36]}  gxh5 {[%clk 0:00:03]} 51. gxh5 {[%clk 0:00:37]}  Kd7 {[%clk 0:00:04]} 52. h6 {[%clk 0:00:35]}  f5 {[%clk 0:00:03]} 53. exf5 {[%clk 0:00:29]}  Bxf5 {[%clk 0:00:04]} 54. Ng4 {[%clk 0:00:29]}  Ke6 {[%clk 0:00:01]} 55. d7 {[%clk 0:00:28]} 1-0


[Site "https://www.chess.com"]

[Event "Titled Tuesday Blitz April 19 Early 2022"]
[White "Mortazavi, Ali"]
[Black "Bluebaum, Matthias"]
[WhiteFideId "401323"]
[BlackFideId "24651516"]
[WhiteElo "2339"]
[BlackElo "2550"]
[Result "0-1"]
[Round "01"]
[TimeControl "180+1"]
[Date "2022.04.19"]
[WhiteClock "0:00:13"]
[BlackClock "0:00:27"]

1. Nf3 {[%clk 0:03:00]}  d5 {[%clk 0:02:58]} 2. g3 {[%clk 0:03:00]}  b6 {[%clk 0:02:59]} 3. Bg2 {[%clk 0:03:01]}  Bb7 {[%clk 0:02:59]} 4. O-O {[%clk 0:03:01]}  e6 {[%clk 0:03:00]} 5. d3 {[%clk 0:03:01]}  Nf6 {[%clk 0:03:00]} 6. Nbd2 {[%clk 0:02:59]}  Be7 {[%clk 0:02:56]} 7. a4 {[%clk 0:02:59]}  O-O {[%clk 0:02:52]} 8. a5 {[%clk 0:03:00]}  b5 {[%clk 0:02:53]} 9. e4 {[%clk 0:02:56]}  c5 {[%clk 0:02:50]} 10. exd5 {[%clk 0:02:53]}  exd5 {[%clk 0:02:48]} 11. d4 {[%clk 0:02:49]}  c4 {[%clk 0:02:45]} 12. Ne5 {[%clk 0:02:46]}  a6 {[%clk 0:02:45]} 13. c3 {[%clk 0:02:43]}  Nc6 {[%clk 0:02:46]} 14. Nxc6 {[%clk 0:02:42]}  Bxc6 {[%clk 0:02:47]} 15. Nf3 {[%clk 0:02:43]}  Bd6 {[%clk 0:02:32]} 16. Ne5 {[%clk 0:02:40]}  Qc7 {[%clk 0:02:32]} 17. Re1 {[%clk 0:02:33]}  Rfe8 {[%clk 0:02:30]} 18. Bg5 {[%clk 0:02:19]}  Ne4 {[%clk 0:02:24]} 19. Bxe4 {[%clk 0:02:09]}  dxe4 {[%clk 0:02:24]} 20. Nxc6 {[%clk 0:02:09]}  Qxc6 {[%clk 0:02:24]} 21. d5 {[%clk 0:02:05]}  Qd7 {[%clk 0:02:18]} 22. Qd4 {[%clk 0:01:58]}  Qf5 {[%clk 0:02:16]} 23. Bd2 {[%clk 0:01:52]}  h5 {[%clk 0:02:11]} 24. Re2 {[%clk 0:01:37]}  Re7 {[%clk 0:02:00]} 25. Rae1 {[%clk 0:01:36]}  Rae8 {[%clk 0:02:00]} 26. h4 {[%clk 0:01:29]}  Qg4 {[%clk 0:01:47]} 27. Qb6 {[%clk 0:01:01]}  Qd7 {[%clk 0:01:45]} 28. Qd4 {[%clk 0:00:56]}  Qf5 {[%clk 0:01:19]} 29. Bc1 {[%clk 0:00:49]}  Re5 {[%clk 0:01:18]} 30. Rd1 {[%clk 0:00:47]}  Qg4 {[%clk 0:01:13]} 31. Rde1 {[%clk 0:00:38]}  Qf5 {[%clk 0:00:55]} 32. Rd1 {[%clk 0:00:38]}  Rd8 {[%clk 0:00:37]} 33. Bf4 {[%clk 0:00:35]}  Ree8 {[%clk 0:00:37]} 34. Bc1 {[%clk 0:00:22]}  Qg4 {[%clk 0:00:26]} 35. Rde1 {[%clk 0:00:22]}  Bxg3 {[%clk 0:00:26]} 36. fxg3 {[%clk 0:00:22]}  Qxg3+ {[%clk 0:00:27]} 37. Kf1 {[%clk 0:00:20]}  Re5 {[%clk 0:00:27]} 38. Rf2 {[%clk 0:00:20]}  Rdxd5 {[%clk 0:00:26]} 39. Bf4 {[%clk 0:00:14]}  Qh3+ {[%clk 0:00:25]} 40. Ke2 {[%clk 0:00:12]}  Rxd4 {[%clk 0:00:26]} 41. cxd4 {[%clk 0:00:13]}  Qd3# {[%clk 0:00:27]} 0-1


[Site "https://www.chess.com"]

[Event "Titled Tuesday Blitz April 19 Early 2022"]
[White "Moskalenko, Alexander"]
[Black "Shtyka, Sergey"]
[WhiteFideId "4155351"]
[BlackFideId "4138465"]
[WhiteElo "2434"]
[BlackElo "2014"]
[Result "1-0"]
[Round "01"]
[TimeControl "180+1"]
[Date "2022.04.19"]
[WhiteClock "0:01:33"]
[BlackClock "0:00:05"]

1. d3 {[%clk 0:02:15]}  c5 {[%clk 0:02:59]} 2. Nf3 {[%clk 0:02:14]}  Nc6 {[%clk 0:02:59]} 3. g3 {[%clk 0:02:15]}  g6 {[%clk 0:02:59]} 4. Bg2 {[%clk 0:02:16]}  Bg7 {[%clk 0:03:00]} 5. O-O {[%clk 0:02:16]}  d5 {[%clk 0:02:58]} 6. c3 {[%clk 0:02:17]}  Nf6 {[%clk 0:02:57]} 7. a3 {[%clk 0:02:17]}  O-O {[%clk 0:02:57]} 8. b4 {[%clk 0:02:17]}  cxb4 {[%clk 0:02:55]} 9. axb4 {[%clk 0:02:17]}  Bg4 {[%clk 0:02:37]} 10. b5 {[%clk 0:02:16]}  Bxf3 {[%clk 0:02:33]} 11. exf3 {[%clk 0:02:13]}  Ne5 {[%clk 0:02:28]} 12. f4 {[%clk 0:02:13]}  Ned7 {[%clk 0:02:26]} 13. Ba3 {[%clk 0:02:12]}  Re8 {[%clk 0:02:19]} 14. Nd2 {[%clk 0:02:11]}  e5 {[%clk 0:02:13]} 15. fxe5 {[%clk 0:02:12]}  Nxe5 {[%clk 0:02:12]} 16. Nf3 {[%clk 0:02:13]}  Nxf3+ {[%clk 0:02:02]} 17. Qxf3 {[%clk 0:02:14]}  a6 {[%clk 0:01:38]} 18. bxa6 {[%clk 0:02:13]}  Rxa6 {[%clk 0:01:36]} 19. Bb4 {[%clk 0:02:14]}  Rxa1 {[%clk 0:01:23]} 20. Rxa1 {[%clk 0:02:15]}  d4 {[%clk 0:01:23]} 21. c4 {[%clk 0:02:14]}  b6 {[%clk 0:01:17]} 22. Qc6 {[%clk 0:02:12]}  Ng4 {[%clk 0:00:58]} 23. f4 {[%clk 0:02:01]}  Ne3 {[%clk 0:00:53]} 24. Ra7 {[%clk 0:01:55]}  Nxg2 {[%clk 0:00:45]} 25. Kxg2 {[%clk 0:01:56]}  h5 {[%clk 0:00:30]} 26. Qb7 {[%clk 0:01:47]}  Qf6 {[%clk 0:00:29]} 27. Ra8 {[%clk 0:01:44]}  Rxa8 {[%clk 0:00:27]} 28. Qxa8+ {[%clk 0:01:45]}  Kh7 {[%clk 0:00:27]} 29. Qe4 {[%clk 0:01:45]}  h4 {[%clk 0:00:24]} 30. g4 {[%clk 0:01:45]}  Qd8 {[%clk 0:00:22]} 31. h3 {[%clk 0:01:44]}  Qd7 {[%clk 0:00:21]} 32. f5 {[%clk 0:01:43]}  Qa4 {[%clk 0:00:21]} 33. Be1 {[%clk 0:01:40]}  Qc2+ {[%clk 0:00:21]} 34. Bf2 {[%clk 0:01:36]}  Qd1 {[%clk 0:00:20]} 35. fxg6+ {[%clk 0:01:35]}  fxg6 {[%clk 0:00:20]} 36. g5 {[%clk 0:01:36]}  Qd2 {[%clk 0:00:18]} 37. Qxh4+ {[%clk 0:01:35]}  Kg8 {[%clk 0:00:18]} 38. Qg3 {[%clk 0:01:35]}  Qe2 {[%clk 0:00:16]} 39. Qf3 {[%clk 0:01:35]}  Qd2 {[%clk 0:00:15]} 40. h4 {[%clk 0:01:35]}  Kh7 {[%clk 0:00:13]} 41. Kh3 {[%clk 0:01:34]}  Qc1 {[%clk 0:00:12]} 42. Bg3 {[%clk 0:01:35]}  Qb1 {[%clk 0:00:12]} 43. h5 {[%clk 0:01:34]}  b5 {[%clk 0:00:11]} 44. h6 {[%clk 0:01:34]}  bxc4 {[%clk 0:00:07]} 45. hxg7 {[%clk 0:01:33]}  Kxg7 {[%clk 0:00:07]} 46. Be5+ {[%clk 0:01:33]}  Kg8 {[%clk 0:00:06]} 47. Qd5+ {[%clk 0:01:33]}  Kf8 {[%clk 0:00:05]} 48. Bd6+ {[%clk 0:01:32]}  Ke8 {[%clk 0:00:05]} 49. Qe6+ {[%clk 0:01:33]} 1-0


[Site "https://www.chess.com"]

[Event "Titled Tuesday Blitz April 19 Early 2022"]
[White "Nazari, Arad"]
[Black "Rabineau, Clement"]
[WhiteFideId "12577324"]
[BlackFideId "628891"]
[WhiteElo "2129"]
[BlackElo "2237"]
[Result "1-0"]
[Round "01"]
[TimeControl "180+1"]
[Date "2022.04.19"]
[WhiteClock "0:01:16"]
[BlackClock "0:00:29"]

1. e4 {[%clk 0:02:54]}  d6 {[%clk 0:03:00]} 2. d4 {[%clk 0:02:51]}  g6 {[%clk 0:03:01]} 3. Nc3 {[%clk 0:02:51]}  Bg7 {[%clk 0:03:01]} 4. f4 {[%clk 0:02:52]}  Nf6 {[%clk 0:03:01]} 5. e5 {[%clk 0:02:52]}  dxe5 {[%clk 0:03:01]} 6. dxe5 {[%clk 0:02:53]}  Qxd1+ {[%clk 0:03:00]} 7. Kxd1 {[%clk 0:02:54]}  Nh5 {[%clk 0:02:57]} 8. Be2 {[%clk 0:02:53]}  Nc6 {[%clk 0:01:41]} 9. g4 {[%clk 0:02:52]}  Nxf4 {[%clk 0:01:33]} 10. Bxf4 {[%clk 0:02:51]}  Nxe5 {[%clk 0:01:33]} 11. h3 {[%clk 0:02:48]}  O-O {[%clk 0:01:27]} 12. Nf3 {[%clk 0:02:48]}  Nxf3 {[%clk 0:01:21]} 13. Bxf3 {[%clk 0:02:47]}  c6 {[%clk 0:01:22]} 14. Ke2 {[%clk 0:02:46]}  e5 {[%clk 0:01:22]} 15. Be3 {[%clk 0:02:46]}  f5 {[%clk 0:01:22]} 16. gxf5 {[%clk 0:02:46]}  gxf5 {[%clk 0:01:22]} 17. Rhg1 {[%clk 0:02:45]}  e4 {[%clk 0:01:13]} 18. Bh5 {[%clk 0:01:59]}  Kh8 {[%clk 0:00:51]} 19. Bf4 {[%clk 0:01:57]}  b6 {[%clk 0:00:45]} 20. Rad1 {[%clk 0:01:55]}  Ba6+ {[%clk 0:00:42]} 21. Ke3 {[%clk 0:01:54]}  Rad8 {[%clk 0:00:29]} 22. Rxg7 {[%clk 0:01:17]}  Kxg7 {[%clk 0:00:29]} 23. Rg1+ {[%clk 0:01:16]} 1-0


[Site "https://www.chess.com"]